[Event "Ostravsky Konik-A 2019"]
[Site "Ostrava"]
[Date "2019.05.04"]
[Round "8.2"]
[White "Vesely, Libor"]
[Black "Mica, Marek"]
[Result "1/2-1/2"]
[ECO "C03"]
[WhiteElo "2216"]
[BlackElo "2147"]
[Annotator "NA"]
[PlyCount "54"]
[EventDate "2019.04.27"]
[EventType "swiss"]
[EventCountry "CZE"]
[SourceTitle "playchess.com"]
[Source "ChessBase"]
[SourceQuality "1"]
[TimeControl "40/5400+30:1800+30"]

1. e4 {[%emt 0:00:00]} e6 {[%emt 0:00:00]} 2. d4 {[%emt 0:00:00]} d5 {[%emt 0:00:00]} 3. Nd2 {[%emt 0:00:00]} Be7 {[%emt 0:00:01]} 4. Ngf3 {[%emt 0:00:04]} Nf6 {[%emt 0:00:08]} 5. Bd3 {[%emt 0:00:10]} c5 {[%emt 0:00:13]} 6. dxc5 {[%emt 0:00:24]} a5 {[%emt 0:00:33]} 7. O-O {[%emt 0:01:14]} Na6 {[%emt 0:00:46]} 8. exd5 {[%emt 0:04:23]} Qxd5 {[%emt 0:01:42]} 9. Nc4 {[%emt 0:04:58]} Bxc5 {[%emt 0:01:41]} 10. Be3 {[%emt 0:00:18]} O-O {[%emt 0:03:13]} 11. Qe2 {[%emt 0:05:15]} Nb4 {[%emt 0:09:05]} 12. Rfd1 {[%emt 0:04:33]} Nxd3 {[%emt 0:00:49]} 13. Qxd3 {[%emt 0:00:10]} Qxd3 {[%emt 0:01:35]} 14. Rxd3 {[%emt 0:05:32]} Bxe3 {[%emt 0:04:27]} 15. Nxe3 {[%emt 0:01:02]} b5 {[%emt 0:01:46]} 16. Rad1 {[%emt 0:03:55]} Bb7 {[%emt 0:02:15]} 17. Ne5 {[%emt 0:05:22]} Bd5 {[%emt 0:04:47]} 18. a3 {[%emt 0:06:42]} h6 {[%emt 0:02:08]} 19. c3 {[%emt 0:06:05]} Rfc8 {[%emt 0:01:33]} 20. Nxd5 {[%emt 0:02:10]} Nxd5 {[%emt 0:00:08]} 21. Rd4 {[%emt 0:01:55]} g5 {[%emt 0:03:32]} 22. g3 {[%emt 0:09:36]} Kg7 {[%emt 0:01:34]} 23. R1d2 {[%emt 0:02:33]} Ra6 {[%emt 0:04:52]} 24. Ng4 {[%emt 0:05:48]} Rc7 {[%emt 0:06:46]} 25. Ne3 {[%emt 0:01:10]} Nxe3 {[%emt 0:00:50]} 26. fxe3 {[%emt 0:00:02]} Kf6 {[%emt 0:01:22]} 27. Kg2 {[%emt 0:01:11]} Ke5 1/2-1/2

[Event "Ostravsky Konik-A 2019"]
[Site "Ostrava"]
[Date "2019.05.04"]
[Round "8.3"]
[White "Stalmach, Richard"]
[Black "Ruzicka, Petr"]
[Result "1/2-1/2"]
[ECO "E12"]
[WhiteElo "2193"]
[BlackElo "2195"]
[Annotator "NA RC"]
[PlyCount "99"]
[EventDate "2019.04.27"]
[EventType "swiss"]
[EventCountry "CZE"]
[SourceTitle "playchess.com"]
[Source "ChessBase"]
[SourceQuality "1"]
[TimeControl "40/5400+30:1800+30"]

1. d4 {[%emt 0:00:00]} Nf6 {[%emt 0:00:00]} 2. c4 {[%emt 0:00:00]} e6 {[%emt 0:00:00]} 3. Nf3 {[%emt 0:00:00]} b6 {[%emt 0:00:00]} 4. Bg5 {[%emt 0:00:17]} Bb7 {[%emt 0:00:48]} 5. g3 {[%emt 0:01:08]} Bb4+ {[%emt 0:01:58]} 6. Nbd2 {[%emt 0:00:25]} O-O {[%emt 0:07:27]} 7. Bg2 {[%emt 0:01:49]} Re8 {[%emt 0:01:07]} 8. O-O {[%emt 0:01:13]} h6 {[%emt 0:12:05]} 9. Bxf6 {[%emt 0:02:55]} Qxf6 {[%emt 0:00:05]} 10. e4 {[%emt 0:01:57]} Qd8 {[%emt 0:07:23]} 11. a3 {[%emt 0:06:15]} Bf8 {[%emt 0:02:08]} 12. b4 {[%emt 0:14:51]} a5 {[%emt 0:02:57]} 13. Qb3 {[%emt 0:02:05]} d6 {[%emt 0:00:55]} 14. d5 {[%emt 0:04:34]} e5 {[%emt 0:11:46]} 15. Rfc1 {[%emt 0:01:36]} Nd7 {[%emt 0:00:52]} 16. Nf1 {[%emt 0:01:26]} Be7 {[%emt 0:01:00]} 17. Ne3 {[%emt 0:01:21]} g6 {[%emt 0:00:25]} 18. Bh3 {[%emt 0:02:32]} Nf6 {[%emt 0:02:42]} 19. Qc2 {[%emt 0:03:22]} Bc8 {[%emt 0:01:29]} 20. Bg2 {[%emt 0:06:17]} Nd7 {[%emt 0:04:44]} 21. Ne1 {[%emt 0:05:27]} Bg5 {[%emt 0:02:52]} 22. Qe2 {[%emt 0:12:48]} h5 {[%emt 0:04:03]} 23. Nd3 {[%emt 0:02:09]} h4 {[%emt 0:08:26]} 24. c5 {[%emt 0:02:44]} hxg3 {[%emt 0:02:24]} 25. hxg3 {[%emt 0:00:12]} Ba6 {[%emt 0:03:20]} 26. cxd6 {[%emt 0:00:50]} cxd6 {[%emt 0:00:09]} 27. Rab1 {[%emt 0:03:18]} axb4 {[%emt 0:02:40]} 28. axb4 {[%emt 0:00:33]} Bb5 {[%emt 0:00:11]} 29. Rc3 {[%emt 0:03:50]} Bxe3 {[%emt 0:05:47]} 30. Qxe3 {[%emt 0:00:26]} Ra2 {[%emt 0:01:32]} 31. Bh3 {[%emt 0:03:53]} Nf6 {[%emt 0:00:20]} 32. Rbc1 {[%emt 0:00:28]} Bd7 {[%emt 0:05:08]} 33. Bg2 {[%emt 0:01:01]} Ra7 {[%emt 0:03:00]} 34. Nb2 {[%emt 0:01:52]} Qb8 {[%emt 0:00:57]} 35. Nc4 {[%emt 0:01:22]} Ra6 {[%emt 0:00:50]} 36. Bf1 {[%emt 0:00:33]} Ng4 {[%emt 0:01:20]} 37. Qf3 {[%emt 0:01:16]} Ra2 {[%emt 0:00:29]} 38. Bh3 {[%emt 0:03:56]} b5 {[%emt 0:02:35]} 39. Ne3 {[%emt 0:04:47]} Rxf2 {[%emt 0:01:34]} 40. Qd1 {[%emt 0:02:12]} Nxe3 {[%emt 0:00:14]} 41. Rxe3 {[%emt 0:30:08]} Rf6 {[%emt 0:31:26]} 42. Bxd7 {[%emt 0:00:00]} Qa7 {[%emt 0:00:00]} 43. Qe2 {[%emt 0:00:00]} Qxd7 {[%emt 0:00:00]} 44. Kg2 {[%emt 0:00:00]} Kg7 {[%emt 0:00:00]} 45. Rh1 {[%emt 0:00:00]} Rh8 {[%emt 0:00:00]} 46. Rxh8 {[%emt 0:00:00]} Kxh8 {[%emt 0:00:00]} 47. Rc3 {[%emt 0:00:00]} Kg7 {[%emt 0:00:00]} 48. Rc1 {[%emt 0:00:00]} Qa7 {[%emt 0:00:00]} 49. Qd2 {[%emt 0:00:00]} Qa3 {[%emt 0:00:00]} 50. Qc3 {[%emt 0:00:00]} 1/2-1/2

[Event "Ostravsky Konik-A 2019"]
[Site "Ostrava"]
[Date "2019.05.04"]
[Round "8.4"]
[White "Nytra, Ondrej"]
[Black "Mrva, Marek"]
[Result "0-1"]
[ECO "C41"]
[WhiteElo "1892"]
[BlackElo "2136"]
[Annotator "NA"]
[PlyCount "82"]
[EventDate "2019.04.27"]
[EventType "swiss"]
[EventCountry "CZE"]
[SourceTitle "playchess.com"]
[Source "ChessBase"]
[SourceQuality "1"]
[TimeControl "40/5400+30:1800+30"]

1. e4 {[%emt 0:00:00]} d6 {[%emt 0:00:00]} 2. d4 {[%emt 0:00:00]} Nf6 {[%emt 0:00:00]} 3. Nc3 {[%emt 0:00:00]} e5 {[%emt 0:00:15]} 4. Nf3 {[%emt 0:00:20]} Nbd7 {[%emt 0:00:28]} 5. Bc4 {[%emt 0:00:14]} Be7 {[%emt 0:00:36]} 6. O-O {[%emt 0:00:18]} O-O {[%emt 0:00:17]} 7. Re1 {[%emt 0:00:07]} c6 {[%emt 0:00:42]} 8. dxe5 {[%emt 0:03:30]} dxe5 {[%emt 0:00:22]} 9. Qe2 {[%emt 0:01:14]} b5 {[%emt 0:01:33]} 10. Bb3 {[%emt 0:00:43]} Qc7 {[%emt 0:00:28]} 11. a3 {[%emt 0:03:25]} Nc5 {[%emt 0:03:15]} 12. Ba2 {[%emt 0:00:04]} a5 {[%emt 0:05:28]} 13. Be3 {[%emt 0:03:49]} Ncxe4 {[%emt 0:07:04]} 14. Nxe4 {[%emt 0:03:08]} Nxe4 {[%emt 0:00:19]} 15. Bf4 {[%emt 0:00:31]} exf4 {[%emt 0:02:00]} 16. Qxe4 {[%emt 0:00:17]} Bf6 {[%emt 0:01:05]} 17. Ne5 {[%emt 0:01:06]} Re8 {[%emt 0:16:24]} 18. Qxc6 {[%emt 0:02:24]} Qxc6 {[%emt 0:00:29]} 19. Nxc6 {[%emt 0:00:32]} Be6 {[%emt 0:22:48]} 20. Bxe6 {[%emt 0:01:10]} Rxe6 {[%emt 0:00:02]} 21. Rxe6 {[%emt 0:00:27]} fxe6 {[%emt 0:00:01]} 22. c3 {[%emt 0:00:31]} Ra6 {[%emt 0:01:47]} 23. Nd4 {[%emt 0:01:39]} Bxd4 {[%emt 0:00:04]} 24. cxd4 {[%emt 0:00:02]} Rc6 {[%emt 0:05:48]} 25. Re1 {[%emt 0:00:59]} Rc2 {[%emt 0:01:59]} 26. Kf1 {[%emt 0:00:35]} Rxb2 {[%emt 0:03:52]} 27. Rxe6 {[%emt 0:00:05]} b4 {[%emt 0:00:05]} 28. axb4 {[%emt 0:03:04]} axb4 {[%emt 0:00:01]} 29. Rb6 {[%emt 0:02:41]} b3 {[%emt 0:01:52]} 30. Rb7 {[%emt 0:01:55]} Kf8 {[%emt 0:02:05]} 31. h4 {[%emt 0:04:39]} g6 {[%emt 0:00:51]} 32. g4 {[%emt 0:12:19]} f3 {[%emt 0:00:27]} 33. Kg1 {[%emt 0:00:02]} Rb1+ {[%emt 0:01:55]} 34. Kh2 {[%emt 0:00:21]} b2 {[%emt 0:00:02]} 35. h5 {[%emt 0:10:08]} gxh5 {[%emt 0:02:47]} 36. gxh5 {[%emt 0:00:33]} h6 {[%emt 0:00:00]} 37. Rb6 {[%emt 0:03:33]} Ke7 {[%emt 0:00:15]} 38. Rb3 {[%emt 0:01:48]} Kd6 {[%emt 0:00:30]} 39. Rxf3 {[%emt 0:00:18]} Rd1 {[%emt 0:00:34]} 40. Rf6+ {[%emt 0:00:33]} Kd5 41. Rb6 {[%emt 0:30:31]} b1=Q {[%emt 0:30:26]} 0-1

[Event "Ostravsky Konik-A 2019"]
[Site "Ostrava"]
[Date "2019.05.04"]
[Round "8.5"]
[White "Malicka, Maria"]
[Black "Gnojek, Petr"]
[Result "0-1"]
[ECO "B81"]
[WhiteElo "2118"]
[BlackElo "2138"]
[Annotator "NA"]
[PlyCount "56"]
[EventDate "2019.04.27"]
[EventType "swiss"]
[EventCountry "CZE"]
[SourceTitle "playchess.com"]
[Source "ChessBase"]
[SourceQuality "1"]
[TimeControl "40/5400+30:1800+30"]

1. e4 {[%emt 0:00:00]} c5 {[%emt 0:00:00]} 2. Nf3 {[%emt 0:00:00]} d6 {[%emt 0:00:00]} 3. d4 {[%emt 0:00:00]} cxd4 {[%emt 0:00:00]} 4. Nxd4 {[%emt 0:00:00]} Nf6 {[%emt 0:00:00]} 5. Nc3 {[%emt 0:00:00]} e6 {[%emt 0:00:00]} 6. g4 {[%emt 0:00:02]} h6 {[%emt 0:00:00]} 7. h4 {[%emt 0:00:06]} Nc6 {[%emt 0:00:00]} 8. Rg1 {[%emt 0:00:10]} h5 {[%emt 0:00:05]} 9. gxh5 {[%emt 0:07:47]} Nxh5 {[%emt 0:00:07]} 10. Bg5 {[%emt 0:01:01]} Nf6 {[%emt 0:00:09]} 11. Qd2 {[%emt 0:04:27]} a6 {[%emt 0:00:31]} 12. O-O-O {[%emt 0:01:27]} Qc7 {[%emt 0:00:58]} 13. Bg2 {[%emt 0:15:06]} Bd7 {[%emt 0:01:41]} 14. f4 {[%emt 0:03:42]} Nxd4 {[%emt 0:13:25]} 15. Qxd4 {[%emt 0:00:07]} Nh7 {[%emt 0:01:06]} 16. f5 {[%emt 0:07:19]} Nxg5 {[%emt 0:00:08]} 17. hxg5 {[%emt 0:00:06]} O-O-O {[%emt 0:01:26]} 18. g6 {[%emt 0:14:15]} d5 {[%emt 0:04:14]} 19. fxe6 {[%emt 0:13:09]} fxe6 {[%emt 0:00:11]} 20. Na4 {[%emt 0:00:16]} Bxa4 {[%emt 0:09:40]} 21. Qxa4 {[%emt 0:00:07]} Bc5 {[%emt 0:00:07]} 22. Rh1 {[%emt 0:04:55]} Qg3 {[%emt 0:03:00]} 23. Rxh8 {[%emt 0:01:03]} Rxh8 {[%emt 0:00:06]} 24. Bh1 {[%emt 0:02:32]} Qe3+ {[%emt 0:01:03]} 25. Kb1 {[%emt 0:00:21]} Qe2 {[%emt 0:00:06]} 26. Rc1 {[%emt 0:09:48]} Be3 {[%emt 0:00:09]} 27. exd5 {[%emt 0:01:35]} Bxc1 {[%emt 0:00:08]} 28. dxe6 {[%emt 0:00:04]} Qxe6 {[%emt 0:00:16]} 0-1

[Event "Ostravsky Konik-A 2019"]
[Site "Ostrava"]
[Date "2019.05.04"]
[Round "8.6"]
[White "Chlevistan, Jakub"]
[Black "Matras, Ondrej"]
[Result "1/2-1/2"]
[ECO "D02"]
[WhiteElo "2047"]
[BlackElo "2162"]
[Annotator "NA"]
[PlyCount "49"]
[EventDate "2019.04.27"]
[EventType "swiss"]
[EventCountry "CZE"]
[SourceTitle "playchess.com"]
[Source "ChessBase"]
[SourceQuality "1"]
[TimeControl "40/5400+30:1800+30"]

1. Nf3 {[%emt 0:00:00]} d5 {[%emt 0:00:00]} 2. d4 {[%emt 0:00:00]} Nc6 {[%emt 0:00:00]} 3. c4 {[%emt 0:00:45]} e6 {[%emt 0:00:05]} 4. Nc3 {[%emt 0:01:25]} Nf6 {[%emt 0:00:05]} 5. Bg5 {[%emt 0:01:25]} Be7 {[%emt 0:00:22]} 6. e3 {[%emt 0:00:54]} O-O {[%emt 0:01:14]} 7. Rc1 {[%emt 0:00:57]} Ne4 {[%emt 0:01:11]} 8. Bxe7 {[%emt 0:02:16]} Qxe7 {[%emt 0:02:47]} 9. a3 {[%emt 0:04:33]} Nxc3 {[%emt 0:05:47]} 10. Rxc3 {[%emt 0:00:13]} Rd8 {[%emt 0:05:39]} 11. cxd5 {[%emt 0:04:45]} exd5 12. Bd3 {[%emt 0:08:29]} g6 {[%emt 0:02:12]} 13. O-O {[%emt 0:01:47]} Nb8 {[%emt 0:07:55]} 14. Ne5 {[%emt 0:06:27]} c6 {[%emt 0:00:41]} 15. Bb1 {[%emt 0:10:30]} Nd7 {[%emt 0:00:37]} 16. f4 {[%emt 0:02:32]} f6 {[%emt 0:01:04]} 17. Nf3 {[%emt 0:03:35]} Nb6 {[%emt 0:10:53]} 18. f5 {[%emt 0:03:12]} g5 {[%emt 0:04:15]} 19. Nd2 {[%emt 0:21:57]} Kh8 {[%emt 0:02:36]} 20. h4 {[%emt 0:02:36]} gxh4 {[%emt 0:02:13]} 21. Qh5 {[%emt 0:01:59]} Rg8 {[%emt 0:05:46]} 22. Qxh4 {[%emt 0:02:16]} Bd7 {[%emt 0:02:01]} 23. e4 {[%emt 0:04:44]} dxe4 {[%emt 0:00:40]} 24. Nxe4 {[%emt 0:00:21]} Nd5 {[%emt 0:00:27]} 25. Rh3 {[%emt 0:00:27]} 1/2-1/2

[Event "Ostravsky Konik-A 2019"]
[Site "Ostrava"]
[Date "2019.05.04"]
[Round "8.7"]
[White "Kucera, Tomas"]
[Black "Orzechowski, Jacek"]
[Result "0-1"]
[ECO "D78"]
[WhiteElo "2024"]
[BlackElo "2139"]
[Annotator "NA"]
[PlyCount "72"]
[EventDate "2019.04.27"]
[EventType "swiss"]
[EventCountry "CZE"]
[SourceTitle "playchess.com"]
[Source "ChessBase"]
[SourceQuality "1"]
[TimeControl "40/5400+30:1800+30"]

1. c4 {[%emt 0:00:00]} c6 {[%emt 0:00:00]} 2. g3 {[%emt 0:00:00]} d5 {[%emt 0:00:00]} 3. Bg2 {[%emt 0:00:00]} Nf6 {[%emt 0:03:30]} 4. d4 {[%emt 0:00:22]} g6 {[%emt 0:01:49]} 5. Nf3 {[%emt 0:00:11]} Bg7 {[%emt 0:00:07]} 6. O-O {[%emt 0:00:09]} O-O {[%emt 0:00:55]} 7. Bf4 {[%emt 0:02:32]} dxc4 {[%emt 0:05:17]} 8. Qc2 {[%emt 0:06:40]} b5 {[%emt 0:10:48]} 9. a4 {[%emt 0:07:34]} Bb7 {[%emt 0:22:38]} 10. Rd1 {[%emt 0:07:56]} Nbd7 {[%emt 0:04:36]} 11. Nc3 {[%emt 0:03:11]} a6 {[%emt 0:05:06]} 12. e4 {[%emt 0:08:11]} Qc8 {[%emt 0:08:47]} 13. Qe2 {[%emt 0:07:31]} Nh5 {[%emt 0:02:46]} 14. Bg5 {[%emt 0:06:38]} Re8 {[%emt 0:05:03]} 15. e5 {[%emt 0:13:34]} Nb6 {[%emt 0:06:57]} 16. Ne1 {[%emt 0:05:12]} f5 {[%emt 0:04:39]} 17. Nc2 {[%emt 0:04:10]} Bf8 {[%emt 0:06:20]} 18. d5 {[%emt 0:09:54]} Nxd5 {[%emt 0:01:45]} 19. Nxd5 {[%emt 0:01:54]} cxd5 {[%emt 0:00:17]} 20. axb5 {[%emt 0:04:47]} e6 {[%emt 0:03:47]} 21. Nd4 {[%emt 0:03:57]} axb5 {[%emt 0:01:57]} 22. Nxb5 {[%emt 0:00:32]} Qc5 {[%emt 0:01:22]} 23. Rxa8 {[%emt 0:01:17]} Rxa8 {[%emt 0:01:07]} 24. Nd4 {[%emt 0:00:06]} Ra6 {[%emt 0:01:07]} 25. Be3 {[%emt 0:01:00]} Qb4 {[%emt 0:00:31]} 26. g4 {[%emt 0:01:07]} Ng7 {[%emt 0:00:32]} 27. gxf5 {[%emt 0:01:11]} gxf5 {[%emt 0:00:31]} 28. Qc2 {[%emt 0:02:07]} Ra2 {[%emt 0:00:43]} 29. Bc1 {[%emt 0:00:24]} Qa4 {[%emt 0:00:33]} 30. Qxa4 {[%emt 0:01:57]} Rxa4 {[%emt 0:00:02]} 31. Bd2 {[%emt 0:00:15]} Bb4 {[%emt 0:01:15]} 32. Bh6 {[%emt 0:00:14]} Bc5 {[%emt 0:00:36]} 33. Bxg7 {[%emt 0:01:14]} Bxd4 {[%emt 0:00:07]} 34. Rxd4 {[%emt 0:00:14]} Kxg7 {[%emt 0:00:25]} 35. Rd2 {[%emt 0:00:49]} Ra1+ {[%emt 0:00:36]} 36. Bf1 {[%emt 0:00:02]} c3 {[%emt 0:00:27]} 0-1

[Event "Ostravsky Konik-A 2019"]
[Site "Ostrava"]
[Date "2019.05.04"]
[Round "8.8"]
[White "Meers, Hubert"]
[Black "Nehyba, Martin"]
[Result "0-1"]
[ECO "B33"]
[WhiteElo "2023"]
[BlackElo "2115"]
[Annotator "NA"]
[PlyCount "86"]
[EventDate "2019.04.27"]
[EventType "swiss"]
[EventCountry "CZE"]
[SourceTitle "playchess.com"]
[Source "ChessBase"]
[SourceQuality "1"]
[TimeControl "40/5400+30:1800+30"]

1. e4 {[%emt 0:00:00]} c5 {[%emt 0:00:00]} 2. Nf3 {[%emt 0:00:00]} e6 {[%emt 0:00:00]} 3. d4 {[%emt 0:00:34]} cxd4 {[%emt 0:00:06]} 4. Nxd4 {[%emt 0:00:05]} Nc6 {[%emt 0:00:06]} 5. Nc3 {[%emt 0:03:54]} Nf6 {[%emt 0:00:05]} 6. Ndb5 {[%emt 0:00:38]} d6 {[%emt 0:00:07]} 7. Bf4 {[%emt 0:00:14]} e5 {[%emt 0:00:05]} 8. Bg5 {[%emt 0:00:05]} a6 {[%emt 0:00:04]} 9. Na3 {[%emt 0:00:26]} b5 {[%emt 0:00:05]} 10. Nd5 {[%emt 0:00:22]} Be7 {[%emt 0:00:06]} 11. Bxf6 {[%emt 0:00:31]} Bxf6 {[%emt 0:00:05]} 12. c3 {[%emt 0:00:57]} Bg5 {[%emt 0:00:37]} 13. Nc2 {[%emt 0:00:26]} Be6 {[%emt 0:00:41]} 14. a4 {[%emt 0:00:27]} bxa4 {[%emt 0:21:14]} 15. Rxa4 {[%emt 0:00:23]} O-O {[%emt 0:02:29]} 16. h4 {[%emt 0:08:34]} Bh6 {[%emt 0:00:40]} 17. g3 {[%emt 0:01:14]} a5 {[%emt 0:01:53]} 18. Bh3 {[%emt 0:00:35]} Ne7 {[%emt 0:05:52]} 19. g4 {[%emt 0:07:57]} Nxd5 {[%emt 0:04:21]} 20. exd5 {[%emt 0:00:16]} Bd7 {[%emt 0:00:05]} 21. Re4 {[%emt 0:11:46]} Qxh4 {[%emt 0:05:35]} 22. Qf3 {[%emt 0:01:31]} Qg5 {[%emt 0:05:55]} 23. Ne3 {[%emt 0:00:48]} a4 {[%emt 0:02:05]} 24. Bf1 {[%emt 0:04:17]} f5 {[%emt 0:09:51]} 25. gxf5 {[%emt 0:02:28]} Bxf5 {[%emt 0:00:38]} 26. Reh4 {[%emt 0:06:28]} a3 {[%emt 0:02:23]} 27. bxa3 {[%emt 0:00:09]} Rxa3 {[%emt 0:00:05]} 28. Rh5 {[%emt 0:01:00]} Ra1+ {[%emt 0:09:18]} 29. Kd2 {[%emt 0:00:17]} Bg6 {[%emt 0:01:11]} 30. Qxf8+ {[%emt 0:28:59]} Kxf8 {[%emt 0:00:31]} 31. Rxg5 {[%emt 0:00:01]} Bxg5 {[%emt 0:00:11]} 32. Rg1 {[%emt 0:01:35]} Bf4 {[%emt 0:03:22]} 33. Ke2 {[%emt 0:00:51]} Be4 {[%emt 0:01:03]} 34. c4 {[%emt 0:01:24]} h6 {[%emt 0:08:09]} 35. Rg4 {[%emt 0:02:54]} Ra2+ {[%emt 0:00:52]} 36. Ke1 {[%emt 0:00:28]} Bf3 {[%emt 0:00:09]} 37. Rg1 {[%emt 0:00:15]} g5 {[%emt 0:00:22]} 38. c5 {[%emt 0:01:50]} dxc5 {[%emt 0:00:08]} 39. d6 {[%emt 0:00:15]} h5 {[%emt 0:01:02]} 40. d7 {[%emt 0:02:12]} Ke7 {[%emt 0:00:05]} 41. Nf5+ {[%emt 0:30:52]} Kd8 {[%emt 0:30:09]} 42. Ne3 {[%emt 0:00:52]} g4 {[%emt 0:00:12]} 43. Nd1 {[%emt 0:00:55]} Bd2# {[%emt 0:00:08]} 0-1

[Event "Ostravsky Konik-A 2019"]
[Site "Ostrava"]
[Date "2019.05.05"]
[Round "9.1"]
[White "Mica, Marek"]
[Black "Mrva, Marek"]
[Result "1-0"]
[ECO "A61"]
[WhiteElo "2139"]
[BlackElo "2125"]
[Annotator "NA RC"]
[PlyCount "101"]
[EventDate "2019.04.27"]
[EventType "swiss"]
[EventCountry "CZE"]
[SourceTitle "playchess.com"]
[Source "ChessBase"]
[SourceQuality "1"]
[TimeControl "40/5400+30:1800+30"]

1. d4 {[%emt 0:00:00]} Nf6 {[%emt 0:00:00]} 2. c4 {[%emt 0:00:00]} c5 {[%emt 0:00:18]} 3. d5 {[%emt 0:00:00]} e6 {[%emt 0:00:29]} 4. Nc3 {[%emt 0:00:00]} exd5 {[%emt 0:00:07]} 5. cxd5 {[%emt 0:00:02]} d6 {[%emt 0:00:05]} 6. Nf3 {[%emt 0:00:08]} g6 {[%emt 0:00:20]} 7. Nd2 {[%emt 0:00:12]} Bg7 {[%emt 0:00:23]} 8. e4 {[%emt 0:00:10]} O-O {[%emt 0:01:54]} 9. Be2 {[%emt 0:00:19]} Na6 {[%emt 0:05:11]} 10. O-O {[%emt 0:00:40]} Nc7 {[%emt 0:00:10]} 11. a4 {[%emt 0:00:21]} b6 {[%emt 0:00:36]} 12. Nc4 {[%emt 0:01:25]} Re8 {[%emt 0:04:27]} 13. f3 {[%emt 0:00:18]} Ba6 {[%emt 0:00:14]} 14. Bg5 {[%emt 0:00:43]} Bxc4 {[%emt 0:05:51] A79: Modern Benoni: Classical: 9...Re8 10 Nd2 Na6 11 f3} 15. Bxc4 {[%emt 0:00:15]} a6 {[%emt 0:00:05]} 16. Qd2 {[%emt 0:02:44]} Qd7 {[%emt 0:04:37] [#]} 17. a5 $146 {[%emt 0:03:46]} ({Predecessor:} 17. Qd3 Nh5 18. g4 Bd4+ 19. Kh1 Ng7 20. Bd2 f5 21. exf5 gxf5 22. g5 f4 23. Rae1 {½-½ (52) Evdokimov,A (2555)-Berg,E (2592) Helsingor 2008}) 17... b5 {[%emt 0:00:31]} 18. Bd3 {[%emt 0:00:46]} Nh5 {[%emt 0:03:46]} 19. g4 {[%emt 0:01:47]} Bd4+ {[%emt 0:01:56]} 20. Kh1 {[%emt 0:01:56]} f6 {[%emt 0:09:30]} 21. Bh4 {[%emt 0:14:30]} g5 {[%emt 0:01:17]} 22. gxh5 {[%emt 0:00:26]} gxh4 {[%emt 0:01:24]} 23. Ne2 {[%emt 0:00:11]} Qf7 {[%emt 0:02:47]} 24. Nxd4 {[%emt 0:01:12]} cxd4 {[%emt 0:00:02]} 25. Qf4 {[%emt 0:00:22]} Re5 {[%emt 0:00:59]} 26. Rg1+ {[%emt 0:01:26]} Kh8 {[%emt 0:00:21]} 27. h6 {[%emt 0:01:10]} Ne8 {[%emt 0:05:11]} 28. Rac1 {[%emt 0:02:31]} Rh5 {[%emt 0:03:56]} 29. Bf1 {[%emt 0:01:01]} Qf8 {[%emt 0:01:53]} 30. Bh3 {[%emt 0:02:52]} Qxh6 {[%emt 0:04:23]} 31. Qxh6 {[%emt 0:05:36]} Rxh6 {[%emt 0:00:04]} 32. Bf5 {[%emt 0:00:16]} Rh5 {[%emt 0:03:09]} 33. f4 {[%emt 0:01:15]} Ng7 {[%emt 0:03:29]} 34. Rc8+ {[%emt 0:00:11]} Rxc8 {[%emt 0:00:03]} 35. Bxc8 {[%emt 0:00:06]} f5 $18 {[%emt 0:00:09]} 36. e5 {[%emt 0:04:07]} dxe5 {[%emt 0:01:33]} 37. fxe5 {[%emt 0:00:07]} f4 {[%emt 0:00:08]} 38. Bxa6 {[%emt 0:00:22]} Rxe5 {[%emt 0:00:32]} 39. Bb7 {[%emt 0:00:40]} f3 {[%emt 0:21:14]} 40. a6 {[%emt 0:00:25]} f2 {[%emt 0:00:15]} 41. Rf1 {[%emt 0:30:38]} h3 {[%emt 0:30:22]} 42. a7 {[%emt 0:00:35]} Re1 {[%emt 0:03:25]} 43. a8=Q+ {[%emt 0:00:23]} Ne8 {[%emt 0:00:02]} 44. Qa1 {[%emt 0:00:23]} Rxa1 {[%emt 0:00:25]} 45. Rxa1 {[%emt 0:00:06]} Nd6 {[%emt 0:00:04]} 46. Rf1 {[%emt 0:02:30]} Nxb7 {[%emt 0:01:03]} 47. Rxf2 {[%emt 0:00:10]} d3 {[%emt 0:01:33]} 48. Rd2 {[%emt 0:00:36]} Nc5 {[%emt 0:00:09]} 49. d6 {[%emt 0:00:48]} Kg7 {[%emt 0:02:01]} 50. Rxd3 {[%emt 0:01:12]} Nxd3 {[%emt 0:00:20]} 51. d7 {[%emt 0:00:08]} 1-0